bitfinex/quotes_SOLUSD_20230116
["timestamp","ask_amount","ask_price","bid_price","bid_amount"]
[1673863251635,17.0,23.398,23.379,20.0]
[1673863251835,20.0,23.397,23.379,20.0]
[1673863252051,17.0,23.396,23.379,20.0]
[1673863252383,20.0,23.395,23.379,20.0]
[1673863252573,17.0,23.394,23.379,20.0]
[1673863252999,17.0,23.396,23.379,20.0]
[1673863253324,20.0,23.395,23.379,20.0]
[1673863253523,17.0,23.394,23.379,20.0]
[1673863254060,20.0,23.395,23.379,20.0]
[1673863254251,20.0,23.404,23.379,20.0]
[1673863254463,32.07,23.403,23.379,20.0]
[1673863254679,20.0,23.402,23.379,20.0]
[1673863255002,32.07,23.405,23.381,20.0]
[1673863255204,32.06,23.412,23.382,52.1]
[1673863255401,32.06,23.412,23.382,70.11028309]
[1673863255612,20.0,23.411,23.383,35.01028309]
[1673863255819,32.06,23.41,23.385,20.0]
[1673863256046,20.0,23.409,23.386,32.09]
[1673863256255,20.0,23.409,23.387,20.0]
[1673863256678,20.0,23.411,23.389,20.0]
[1673863257403,32.06,23.41,23.389,20.0]
[1673863257737,20.0,23.409,23.389,20.0]
[1673863258161,20.0,23.411,23.389,20.0]
[1673863258349,32.06,23.41,23.389,20.0]
[1673863258564,20.0,23.409,23.389,20.0]
[1673863258890,17.0,23.408,23.389,20.0]
[1673863259206,20.0,23.407,23.389,20.0]
[1673863259417,17.0,23.406,23.389,20.0]
[1673863259732,20.0,23.405,23.389,20.0]
[1673863259949,17.0,23.404,23.389,20.0]
[1673863260774,20.0,23.405,23.39,24.67]
[1673863260986,20.0,23.411,23.391,20.0]
[1673863262569,17.0,23.41,23.391,20.0]
[1673863262890,20.0,23.409,23.391,20.0]
[1673863263083,17.0,23.408,23.391,20.0]
[1673863263288,20.0,23.407,23.391,20.0]
[1673863263498,17.0,23.406,23.391,20.0]
[1673863263714,20.0,23.405,23.391,20.0]
[1673863263920,49.07,23.404,23.388,110.7965]
[1673863264144,49.07,23.404,23.376,52.11]
[1673863264349,24.92,23.4,23.38,113.8802]
[1673863264673,69.08,23.399,23.38,113.8802]
[1673863264893,86.55678031,23.399,23.38,113.8802]
[1673863265078,69.08,23.399,23.38,113.8802]
[1673863265285,20.0,23.398,23.374,110.1657]
[1673863265619,69.08,23.397,23.374,224.0459]
[1673863265816,20.0,23.396,23.374,224.0459]
[1673863266026,69.08,23.395,23.374,113.8802]
[1673863266239,69.08,23.395,23.364,32.13]
[1673863266447,68.19047248,23.394,23.368,113.8802]
[1673863266649,89.09,23.393,23.369,20.0]
[1673863266859,24.8,23.39,23.368,113.8802]
[1673863267068,69.09,23.389,23.368,113.8802]
[1673863267488,21.46196354,23.388,23.368,113.8802]
[1673863267703,69.09,23.387,23.368,113.8802]
[1673863268233,69.09,23.387,23.369,20.0]
[1673863268658,49.09,23.387,23.369,20.0]
[1673863268873,17.0,23.387,23.369,20.0]
[1673863269086,20.0,23.386,23.369,20.0]
[1673863269294,17.0,23.385,23.369,20.0]
[1673863270135,17.0,23.386,23.369,20.0]
[1673863270458,20.0,23.385,23.369,20.0]
[1673863270655,17.0,23.384,23.369,20.0]
[1673863271075,20.0,23.385,23.369,20.0]
[1673863271289,20.0,23.387,23.369,20.0]
[1673863271923,20.0,23.388,23.369,20.0]
[1673863272867,49.09,23.387,23.369,20.0]
[1673863273288,20.0,23.386,23.369,20.0]
[1673863273503,17.0,23.385,23.369,20.0]
[1673863274657,20.0,23.386,23.369,20.0]
[1673863274870,20.0,23.388,23.369,20.0]
[1673863275819,20.0,23.389,23.369,20.0]
[1673863276006,32.09,23.391,23.369,37.53140539]
[1673863276217,32.08,23.398,23.37,69.65140539]
[1673863276463,20.0,23.397,23.371,20.0]
[1673863276656,32.08,23.396,23.372,32.11]
[1673863276849,20.0,23.395,23.373,20.0]
[1673863277064,20.0,23.395,23.375,20.0]
[1673863277497,20.0,23.398,23.375,20.0]
[1673863277693,32.08,23.397,23.375,20.0]
[1673863277903,20.0,23.396,23.375,20.0]
[1673863278347,41.46196354,23.396,23.375,20.0]
[1673863279203,17.0,23.395,23.375,20.0]
[1673863279596,32.08,23.394,23.375,20.0]
[1673863279928,17.0,23.393,23.375,20.0]
[1673863280134,32.09,23.392,23.375,20.0]
[1673863280355,17.0,23.391,23.375,20.0]
[1673863280749,17.0,23.391,23.369,32.12]
[1673863280966,52.09,23.39,23.369,20.0]
[1673863281169,17.0,23.389,23.369,20.0]
[1673863281396,20.0,23.388,23.369,20.0]
[1673863281595,17.0,23.387,23.369,20.0]
[1673863281807,20.0,23.386,23.369,20.0]
[1673863282019,17.0,23.385,23.369,20.0]
[1673863284239,20.0,23.386,23.369,20.0]
[1673863284639,21.46196354,23.391,23.369,20.0]
[1673863284967,32.09,23.39,23.37,17.53140539]
[1673863285182,32.08,23.395,23.372,20.0]
[1673863285375,32.08,23.399,23.373,32.11]
[1673863285588,17.47678031,23.397,23.374,20.0]
[1673863285915,52.08,23.396,23.374,20.0]
[1673863286129,52.08,23.396,23.374,131.6632]
[1673863286866,20.0,23.396,23.376,20.0]
[1673863287484,20.0,23.396,23.378,20.0]
[1673863288343,20.0,23.398,23.378,20.0]
[1673863288544,32.08,23.397,23.378,20.0]
[1673863288746,37.47678031,23.396,23.378,20.0]
[1673863288960,32.08,23.395,23.378,20.0]
[1673863289167,17.0,23.394,23.378,20.0]
[1673863291518,49.55678031,23.395,23.378,20.0]
[1673863291689,20.0,23.396,23.378,20.0]
[1673863291901,20.0,23.398,23.378,20.0]
[1673863292232,32.08,23.397,23.378,20.0]
[1673863292441,20.0,23.396,23.378,20.0]
[1673863293053,20.0,23.398,23.378,20.0]
[1673863293281,49.08,23.397,23.378,20.0]
[1673863293477,20.0,23.396,23.378,20.0]
[1673863293689,17.0,23.395,23.378,20.0]
[1673863294629,49.08,23.395,23.377,111.1517]
[1673863294847,17.47678031,23.394,23.378,20.0]
[1673863295172,49.09,23.393,23.378,20.0]
[1673863295782,17.47678031,23.392,23.375,20.0]
[1673863296123,49.09,23.391,23.375,20.0]
[1673863296328,49.09,23.391,23.374,131.6632]
[1673863296520,20.0,23.39,23.374,131.6632]
[1673863296856,32.08,23.397,23.374,131.6632]
[1673863297069,20.0,23.396,23.374,131.6632]
[1673863297278,32.08,23.395,23.374,131.6632]
[1673863297494,17.47678031,23.397,23.374,131.6632]
[1673863297800,32.08,23.396,23.374,131.6632]
[1673863298738,17.47678031,23.396,23.374,131.6632]
[1673863298948,17.0,23.395,23.374,131.6632]
[1673863299163,17.47678031,23.396,23.374,131.6632]
[1673863299381,32.08,23.399,23.376,20.0]
[1673863299579,53.53196354,23.403,23.376,20.0]
[1673863299806,52.08,23.399,23.376,20.0]
[1673863300130,73.54196354,23.399,23.375,32.11]
[1673863300301,20.0,23.398,23.374,111.6632]
[1673863300510,32.08,23.397,23.374,111.6632]
[1673863300743,37.0,23.396,23.375,20.0]
[1673863300956,32.08,23.395,23.375,20.0]
[1673863301162,17.0,23.394,23.375,20.0]
[1673863304003,32.09,23.393,23.375,20.0]
[1673863304198,17.0,23.392,23.375,20.0]
[1673863304407,32.09,23.393,23.375,20.0]
[1673863304720,17.0,23.392,23.375,20.0]
[1673863305340,17.0,23.394,23.375,20.0]
[1673863306412,17.0,23.394,23.374,111.6632]
[1673863306624,49.08,23.395,23.374,111.6632]
[1673863306946,49.08,23.395,23.375,20.0]
[1673863307573,21.46196354,23.394,23.374,111.6632]
[1673863307781,49.09,23.393,23.374,111.6632]
[1673863308310,49.09,23.393,23.375,20.0]
[1673863308931,49.09,23.393,23.374,111.6632]
[1673863309142,49.09,23.393,23.375,20.0]
[1673863309367,17.0,23.393,23.375,20.0]
[1673863310713,17.0,23.393,23.374,111.6632]
[1673863310923,17.0,23.393,23.375,20.0]
[1673863312618,49.08,23.395,23.375,20.0]
[1673863313682,20.0,23.396,23.375,37.53140539]
[1673863313874,20.0,23.398,23.376,32.11]
[1673863314069,20.0,23.399,23.377,20.0]
[1673863314283,52.07,23.405,23.377,55.06281078]
[1673863314499,52.07,23.405,23.377,37.53140539]
[1673863315140,20.0,23.404,23.377,37.53140539]
[1673863315364,52.07,23.403,23.377,37.53140539]
[1673863315675,20.0,23.402,23.377,37.53140539]
[1673863315861,32.07,23.401,23.377,37.53140539]
[1673863316071,20.0,23.4,23.377,37.53140539]
[1673863316282,69.08,23.399,23.377,20.0]
[1673863316504,20.0,23.398,23.377,20.0]
[1673863316718,17.0,23.397,23.377,20.0]
[1673863317023,20.0,23.396,23.377,20.0]
[1673863317236,17.0,23.395,23.377,20.0]
[1673863319982,32.07,23.406,23.378,32.11]
[1673863320179,20.0,23.405,23.381,20.0]
[1673863320388,20.0,23.405,23.382,32.1]
[1673863320710,17.47678031,23.407,23.384,20.0]
[1673863320913,17.47678031,23.407,23.385,32.1]
[1673863321122,17.47678031,23.407,23.386,20.0]
[1673863321333,17.0,23.406,23.386,20.0]
[1673863321573,17.0,23.406,23.388,20.0]
[1673863321868,20.0,23.405,23.388,20.0]
[1673863322086,32.06,23.415,23.388,136.6287]
[1673863322281,32.05,23.419,23.39,24.93]
[1673863322500,32.05,23.419,23.392,20.0]
[1673863322691,32.05,23.419,23.393,52.09]
[1673863323023,17.47678031,23.418,23.393,52.09]
[1673863323241,17.47678031,23.418,23.394,20.0]
[1673863323450,17.47678031,23.418,23.395,32.08]
[1673863323661,17.47678031,23.418,23.396,20.0]
[1673863324271,20.0,23.417,23.396,20.0]
[1673863324493,20.0,23.421,23.398,20.0]
[1673863324707,20.0,23.419,23.397,114.9461]
[1673863324917,69.05,23.418,23.397,114.9461]
[1673863325556,37.0,23.418,23.397,114.9461]
[1673863325775,21.46196354,23.417,23.398,20.0]
[1673863325976,17.0,23.416,23.398,20.0]
[1673863326197,20.0,23.415,23.398,20.0]
[1673863326510,17.0,23.414,23.398,20.0]
[1673863326720,17.0,23.414,23.397,114.9461]
[1673863327670,17.0,23.414,23.398,20.0]
[1673863328089,20.0,23.415,23.398,20.0]
[1673863328289,20.0,23.419,23.398,20.0]
[1673863328500,32.05,23.418,23.398,20.0]
[1673863328818,20.0,23.417,23.397,114.9461]
[1673863329033,20.0,23.415,23.397,114.9461]
[1673863329239,32.06,23.414,23.397,114.9461]
[1673863329457,17.0,23.413,23.397,114.9461]
[1673863329668,32.06,23.412,23.397,114.9461]
[1673863329851,17.0,23.411,23.397,114.9461]
[1673863330297,49.06,23.411,23.397,114.9461]
[1673863330482,17.0,23.411,23.398,20.0]
[1673863330697,17.0,23.413,23.398,20.0]
[1673863331551,17.0,23.413,23.398,52.08]
[1673863331761,17.0,23.413,23.398,20.0]
[1673863332293,21.46196354,23.418,23.398,20.0]
[1673863332500,32.04,23.425,23.4,24.91]
[1673863332717,32.04,23.425,23.401,40.0]
[1673863335219,17.0,23.424,23.401,40.0]
[1673863335435,32.04,23.423,23.401,40.0]
[1673863335772,17.0,23.422,23.401,40.0]
[1673863335955,32.04,23.423,23.401,40.0]
[1673863336168,32.04,23.425,23.401,40.0]
[1673863336705,37.47678031,23.424,23.4,116.5185]
[1673863336908,52.04,23.423,23.4,116.5185]
[1673863337123,20.0,23.422,23.401,20.0]
[1673863337347,49.05,23.421,23.401,20.0]
[1673863337563,20.0,23.42,23.401,20.0]
[1673863337765,32.05,23.419,23.401,20.0]
[1673863337973,20.0,23.433,23.401,52.07]
[1673863337974,32.04,23.424,23.401,52.07]
[1673863338174,32.04,23.425,23.401,52.07]
[1673863338379,32.04,23.429,23.402,17.0]
[1673863338612,32.03,23.433,23.403,32.07]
[1673863338811,32.03,23.433,23.405,20.0]
[1673863339544,32.03,23.435,23.406,111.8932]
[1673863339760,20.0,23.434,23.406,111.8932]
[1673863339960,32.03,23.433,23.41,24.91]
[1673863340170,20.0,23.432,23.411,20.0]
[1673863340375,32.03,23.431,23.411,20.0]
[1673863340607,20.0,23.43,23.411,20.0]
[1673863340806,32.04,23.429,23.411,20.0]
[1673863341021,20.0,23.428,23.411,20.0]
[1673863341230,32.04,23.427,23.411,20.0]
[1673863341553,20.0,23.426,23.411,20.0]
[1673863341760,20.0,23.428,23.406,131.8932]
[1673863341980,49.04,23.427,23.406,131.8932]
[1673863342171,20.0,23.426,23.407,20.0]
[1673863342382,17.0,23.425,23.407,20.0]
[1673863343217,20.0,23.426,23.407,20.0]
[1673863343431,20.0,23.432,23.407,20.0]
[1673863343652,32.03,23.431,23.407,52.07]
[1673863343873,20.0,23.43,23.407,52.07]
[1673863344077,32.04,23.429,23.407,20.0]
[1673863344277,20.0,23.428,23.407,20.0]
[1673863344483,32.04,23.427,23.406,111.8932]
[1673863344709,20.0,23.426,23.407,20.0]
[1673863345029,32.04,23.425,23.407,20.0]
[1673863347120,20.0,23.426,23.407,20.0]
[1673863347319,332.24410722,23.438,23.42,24.88]
[1673863347524,147.6632,23.439,23.42,24.88]
[1673863347746,115.6432,23.439,23.42,24.88]
[1673863348313,115.6432,23.439,23.422,20.0]
[1673863349670,32.01,23.447,23.423,20.0]
[1673863349860,24.75,23.45,23.424,20.0]
[1673863349861,20.0,23.446,23.424,20.0]
[1673863350066,32.01,23.445,23.424,20.0]
[1673863350708,32.01,23.449,23.424,20.0]
[1673863351775,17.0,23.448,23.424,52.04]
[1673863351963,32.01,23.447,23.424,52.04]
[1673863352170,20.0,23.446,23.424,52.04]
[1673863352497,20.0,23.446,23.431,20.0]
[1673863352710,32.01,23.451,23.431,20.0]
[1673863352916,32.01,23.451,23.432,118.2255]
[1673863353132,32.01,23.451,23.433,20.0]
[1673863353454,32.01,23.451,23.432,118.2255]
[1673863353641,20.0,23.45,23.432,118.2255]
[1673863353849,32.01,23.449,23.432,118.2255]
[1673863354091,20.0,23.448,23.432,118.2255]
[1673863354267,20.0,23.448,23.433,20.0]
[1673863354478,17.0,23.447,23.433,20.0]
[1673863354688,20.0,23.446,23.433,20.0]
[1673863354899,17.0,23.445,23.433,20.0]
[1673863355553,17.0,23.445,23.432,118.2255]
[1673863355956,17.0,23.445,23.427,20.0]
[1673863356170,32.02,23.444,23.427,20.0]
[1673863356378,17.0,23.443,23.427,20.0]
[1673863356684,32.01,23.445,23.428,20.0]
[1673863356904,32.01,23.451,23.43,24.79]
[1673863357128,31.99,23.459,23.43,24.79]
[1673863357331,31.99,23.459,23.431,40.0]
[1673863358378,31.99,23.459,23.431,57.53140539]
[1673863358696,20.0,23.463,23.433,20.0]
[1673863358897,24.88,23.46,23.433,20.0]
[1673863359123,31.99,23.459,23.433,20.0]
[1673863359729,37.0,23.458,23.433,20.0]
[1673863359945,32.0,23.457,23.433,20.0]
[1673863360155,37.0,23.456,23.433,20.0]
[1673863360375,32.0,23.455,23.433,20.0]
[1673863361961,20.0,23.456,23.434,32.03]
[1673863362275,31.99,23.459,23.434,32.03]
[1673863362276,20.0,23.458,23.434,49.56140539]
[1673863362701,32.0,23.457,23.433,20.0]
[1673863362895,20.0,23.456,23.433,20.0]
[1673863363107,49.0,23.455,23.433,20.0]
[1673863363538,32.0,23.455,23.433,20.0]
[1673863363760,20.0,23.456,23.434,32.03]
[1673863363961,31.98,23.473,23.44,24.76]
[1673863364153,31.97,23.474,23.45,24.88]
[1673863364586,31.97,23.474,23.451,20.0]
[1673863365008,31.97,23.474,23.451,133.0162]
[1673863365211,20.0,23.473,23.451,133.0162]
[1673863365432,31.98,23.472,23.451,150.54760539]
[1673863365649,31.97,23.477,23.451,150.54760539]
[1673863365844,31.97,23.477,23.453,20.0]
[1673863366701,20.0,23.476,23.453,20.0]
[1673863366886,31.97,23.475,23.453,20.0]
[1673863367093,31.97,23.475,23.452,137.4068]
[1673863367518,21.46196354,23.474,23.453,20.0]
[1673863367750,31.98,23.473,23.453,20.0]
[1673863367942,17.0,23.472,23.453,20.0]
[1673863368151,31.98,23.471,23.453,20.0]
[1673863368361,17.0,23.47,23.453,20.0]
[1673863368789,17.0,23.472,23.453,20.0]
[1673863368994,31.98,23.471,23.453,20.0]
[1673863369208,17.0,23.47,23.453,20.0]
[1673863369933,31.98,23.469,23.441,32.02]
[1673863370144,20.0,23.468,23.443,108.5368]
[1673863370381,24.88,23.46,23.444,20.0]
[1673863370574,20.0,23.466,23.444,20.0]
[1673863370575,68.99,23.459,23.444,20.0]
[1673863370989,68.99,23.459,23.443,108.5368]
[1673863371204,21.46196354,23.458,23.44,20.0]
[1673863371414,69.0,23.457,23.44,20.0]
[1673863372582,21.46196354,23.463,23.44,44.88]
[1673863372788,51.99,23.462,23.44,44.88]
[1673863373851,17.0,23.461,23.44,44.88]
[1673863374070,51.99,23.46,23.44,44.88]
[1673863374262,17.0,23.459,23.44,44.88]
[1673863375218,24.88,23.47,23.442,20.0]
[1673863375219,20.0,23.458,23.442,20.0]
[1673863375415,17.0,23.457,23.442,20.0]
[1673863375627,52.0,23.456,23.442,20.0]
[1673863375836,17.0,23.455,23.442,20.0]
[1673863377102,17.0,23.455,23.443,20.0]
[1673863377525,31.99,23.463,23.444,20.0]
[1673863377842,31.98,23.469,23.445,119.8013]
[1673863378163,20.0,23.468,23.446,20.0]
[1673863378368,31.98,23.467,23.446,20.0]
[1673863378683,20.0,23.466,23.447,32.01]
[1673863379087,20.0,23.474,23.448,20.0]
[1673863379290,31.98,23.473,23.45,24.79]
[1673863379505,20.0,23.472,23.451,20.0]
[1673863379719,31.98,23.471,23.452,20.0]
[1673863379926,31.97,23.477,23.453,20.0]
[1673863380344,31.97,23.477,23.452,129.8878]
[1673863380345,20.0,23.475,23.452,109.8878]
[1673863380556,51.97,23.474,23.453,20.0]
[1673863380999,21.46196354,23.473,23.453,20.0]
[1673863381311,51.98,23.472,23.453,20.0]
[1673863381524,68.98,23.472,23.453,20.0]
[1673863381932,31.98,23.472,23.453,20.0]
[1673863382255,31.97,23.477,23.453,20.0]
[1673863382662,31.97,23.477,23.453,37.53140539]
[1673863384464,31.97,23.477,23.453,20.0]
[1673863384661,21.46196354,23.476,23.453,20.0]
[1673863384866,31.97,23.475,23.453,20.0]
[1673863385296,17.0,23.474,23.453,20.0]
[1673863385611,31.98,23.473,23.455,20.0]
[1673863385828,17.0,23.472,23.455,20.0]
[1673863387931,31.97,23.477,23.46,24.79]
[1673863388144,20.0,23.476,23.461,20.0]
[1673863388761,113.5696,23.478,23.461,20.0]
[1673863388960,44.88,23.49,23.461,20.0]
[1673863388961,24.95,23.5,23.462,30.97181549]
[1673863389182,5.833,23.493,23.471,20.0]
[1673863389384,5.832,23.499,23.48,24.76]
[1673863389603,113.5696,23.517,23.49,24.79]
[1673863390343,25.828,23.516,23.491,20.0]
[1673863390762,17.040575,23.502,23.481,31.96]
[1673863391085,17.040575,23.502,23.483,20.0]
[1673863392452,31.94,23.5,23.48,24.76]
[1673863392862,20.0,23.499,23.48,24.76]
[1673863393065,31.94,23.498,23.48,24.76]
[1673863393271,20.0,23.497,23.472,31.98]
[1673863393499,68.94,23.496,23.47,24.79]
[1673863393914,48.94,23.496,23.47,24.79]
[1673863394127,20.0,23.494,23.463,17.53140539]
[1673863394335,68.95,23.493,23.468,20.0]
[1673863394746,68.95,23.493,23.47,24.88]
[1673863394954,48.95,23.493,23.471,20.0]
[1673863395166,31.95,23.493,23.471,37.53140539]
[1673863395376,31.94,23.499,23.472,17.53140539]
[1673863395610,20.0,23.498,23.48,24.72]
[1673863396009,20.0,23.497,23.474,20.0]
[1673863396213,20.0,23.495,23.474,20.0]
[1673863396439,31.95,23.494,23.474,20.0]
[1673863396672,31.94,23.497,23.474,20.0]
[1673863396873,17.0,23.496,23.474,20.0]
[1673863397185,31.95,23.495,23.475,17.53140539]
[1673863397376,17.0,23.494,23.475,17.53140539]
[1673863397922,31.95,23.493,23.474,20.0]
[1673863398112,17.0,23.492,23.474,20.0]
[1673863398322,17.0,23.494,23.474,20.0]
[1673863398527,17.0,23.496,23.474,20.0]
[1673863398743,31.95,23.495,23.475,17.53140539]
[1673863398965,17.0,23.494,23.477,20.0]
[1673863399389,17.0,23.496,23.478,17.53140539]
[1673863399600,17.0,23.497,23.479,20.0]
[1673863401059,17.0,23.499,23.479,20.0]
[1673863401270,31.94,23.498,23.479,20.0]
[1673863401697,17.0,23.497,23.479,19.736663]
[1673863402132,17.0,23.498,23.479,19.736663]
[1673863402324,17.0,23.499,23.479,19.736663]
[1673863402535,31.94,23.498,23.48,24.72]
[1673863402755,31.94,23.5,23.482,20.0]
[1673863403159,31.93,23.509,23.482,20.0]
[1673863403581,31.92,23.514,23.483,17.53140539]
[1673863403801,125.3540486,23.501,23.482,20.0]
[1673863404446,125.3540486,23.501,23.482,37.53140539]
[1673863405295,125.3540486,23.501,23.482,20.0]
[1673863405691,20.0,23.5,23.481,20.0]
[1673863405899,48.94,23.499,23.47,44.62]
[1673863406117,20.0,23.498,23.472,20.0]
[1673863406329,31.94,23.497,23.472,20.0]
[1673863407374,17.0,23.496,23.471,20.0]
[1673863407583,24.54,23.49,23.45,24.72]
[1673863407809,51.95,23.489,23.461,108.2129]
[1673863408018,20.0,23.488,23.461,108.2129]
[1673863408218,51.96,23.487,23.461,108.2129]
[1673863408427,17.0,23.486,23.461,108.2129]
[1673863408632,31.96,23.485,23.462,20.0]
[1673863408862,37.0,23.484,23.462,20.0]
[1673863409057,31.96,23.483,23.462,20.0]
[1673863409266,37.0,23.482,23.462,20.0]
[1673863409476,31.96,23.481,23.462,20.0]
[1673863409689,37.0,23.48,23.462,20.0]
[1673863409893,31.97,23.479,23.462,20.0]
[1673863410104,37.0,23.478,23.462,20.0]
[1673863410319,31.97,23.477,23.462,20.0]
[1673863410533,17.0,23.476,23.462,20.0]
[1673863410853,31.97,23.477,23.461,108.2129]
[1673863411067,31.97,23.477,23.462,20.0]
[1673863411918,31.96,23.487,23.462,20.0]
[1673863412107,17.47678031,23.483,23.462,20.0]
[1673863412442,31.96,23.482,23.462,20.0]
[1673863413162,17.0,23.481,23.462,19.78344]
[1673863413489,31.97,23.48,23.462,19.78344]
[1673863413694,17.0,23.479,23.462,19.78344]
[1673863413909,17.0,23.481,23.462,19.78344]
[1673863414114,31.96,23.486,23.462,19.78344]
[1673863414325,31.95,23.494,23.47,24.48]
[1673863414537,51.94,23.498,23.47,24.48]
[1673863414733,51.94,23.498,23.471,51.98]
[1673863415159,51.94,23.498,23.472,20.0]
[1673863416000,51.94,23.498,23.474,20.0]
[1673863416217,21.46196354,23.497,23.474,20.0]
[1673863416530,31.94,23.496,23.474,20.0]
[1673863416749,31.94,23.497,23.474,20.0]
[1673863418530,31.94,23.497,23.474,51.97]
[1673863418726,53.40196354,23.497,23.474,20.0]
[1673863419373,31.94,23.497,23.474,20.0]
[1673863419565,53.40196354,23.497,23.474,20.0]
[1673863419780,31.94,23.497,23.474,20.0]
[1673863420938,53.40196354,23.497,23.474,20.0]
[1673863421354,17.0,23.496,23.474,20.0]
[1673863421559,31.95,23.495,23.474,20.0]
[1673863421789,17.0,23.494,23.474,20.0]
[1673863422413,17.0,23.496,23.474,20.0]
[1673863422626,31.95,23.495,23.474,20.0]
[1673863422851,17.0,23.494,23.474,20.0]
[1673863423059,21.46196354,23.497,23.48,24.62]
[1673863423279,24.59,23.51,23.482,20.0]
[1673863423671,31.93,23.509,23.482,20.0]
[1673863424009,110.4572446,23.501,23.482,20.0]
[1673863424203,31.94,23.5,23.482,20.0]
[1673863424409,56.53,23.5,23.476,20.0]
[1673863424823,20.0,23.498,23.476,20.0]
[1673863425038,48.94,23.497,23.476,20.0]
[1673863427997,31.94,23.497,23.476,20.0]
[1673863428214,31.94,23.499,23.476,20.0]
[1673863428421,20.0,23.497,23.472,20.0]
[1673863428646,31.94,23.496,23.472,20.0]
[1673863428834,31.94,23.496,23.471,37.53140539]
[1673863428835,31.94,23.496,23.473,110.3918]
[1673863429046,20.0,23.495,23.47,24.48]
[1673863429265,24.56,23.49,23.467,130.58340539]
[1673863429573,51.95,23.489,23.467,113.052]
[1673863429975,51.95,23.489,23.468,20.0]
[1673863430196,20.0,23.489,23.468,20.0]
[1673863430410,20.0,23.493,23.47,24.48]
[1673863430625,31.95,23.492,23.471,20.0]
[1673863430813,20.0,23.491,23.471,20.0]
[1673863431026,31.95,23.49,23.471,20.0]
[1673863431239,20.0,23.489,23.47,24.48]
[1673863431867,17.0,23.488,23.471,20.0]
[1673863432285,20.0,23.487,23.471,20.0]
[1673863432497,20.0,23.487,23.47,24.48]
[1673863432706,17.0,23.486,23.471,20.0]